[Event "Early-Titled-Tuesday-Blitz-September-12-2023"]
[Site "Chess.com"]
[Date "2023.09.12"]
[Round "11"]
[White "DefiantChair"]
[Black "Herman-NY"]
[Result "1-0"]
[WhiteElo "2686"]
[BlackElo "2542"]
[TimeControl "180+1"]
[EndTime "10:05:23 PDT"]
[Termination "DefiantChair won by resignation"]

1. e4 {[%clk 0:03:00.9]} 1... c5 {[%clk 0:03:00]} 2. Nf3 {[%clk 0:03:00.9]} 2...
Nc6 {[%clk 0:03:00.6]} 3. d4 {[%clk 0:03:01]} 3... cxd4 {[%clk 0:03:01.5]} 4.
Nxd4 {[%clk 0:03:01.9]} 4... e6 {[%clk 0:03:02.4]} 5. Nc3 {[%clk 0:03:02]} 5...
a6 {[%clk 0:03:02.8]} 6. Be3 {[%clk 0:03:02]} 6... Qc7 {[%clk 0:03:02.5]} 7. Qd2
{[%clk 0:03:02.3]} 7... Nf6 {[%clk 0:03:01.1]} 8. O-O-O {[%clk 0:03:02.5]} 8...
b5 {[%clk 0:02:39.6]} 9. f3 {[%clk 0:02:51.1]} 9... Bb7 {[%clk 0:02:39.2]} 10.
Kb1 {[%clk 0:02:50.6]} 10... h5 {[%clk 0:02:34.3]} 11. Bf2 {[%clk 0:02:49.1]}
11... h4 {[%clk 0:01:33.8]} 12. g4 {[%clk 0:02:25.2]} 12... hxg3 {[%clk
0:00:58.5]} 13. Bxg3 {[%clk 0:02:24.9]} 13... Ne5 {[%clk 0:00:33.8]} 14. Qg5
{[%clk 0:02:11.6]} 14... d6 {[%clk 0:00:21.7]} 15. Bxb5+ {[%clk 0:01:36.3]}
15... axb5 {[%clk 0:00:21.8]} 16. Ndxb5 {[%clk 0:01:37.2]} 16... Qa5 {[%clk
0:00:12.6]} 17. a3 {[%clk 0:01:11.7]} 17... Rh5 {[%clk 0:00:05.9]} 18. Qe3
{[%clk 0:01:11.7]} 18... Rd8 {[%clk 0:00:04.3]} 19. Be1 {[%clk 0:01:09.8]} 19...
Nc4 {[%clk 0:00:04.5]} 20. Qd4 {[%clk 0:01:04.1]} 20... Rxb5 {[%clk 0:00:04.6]}
21. Qxc4 {[%clk 0:00:57.9]} 21... Rc5 {[%clk 0:00:05]} 22. Qb3 {[%clk
0:00:56.5]} 22... Qc7 {[%clk 0:00:04.9]} 23. Nb5 {[%clk 0:00:54]} 23... Qc6
{[%clk 0:00:03.1]} 24. a4 {[%clk 0:00:52.3]} 24... Rc8 {[%clk 0:00:01.9]} 25.
Bf2 {[%clk 0:00:49.8]} 25... Rc4 {[%clk 0:00:02]} 26. Na7 {[%clk 0:00:49.1]}
26... Qc7 {[%clk 0:00:01.9]} 27. Nxc8 {[%clk 0:00:48.5]} 27... Bxc8 {[%clk
0:00:02.8]} 28. a5 {[%clk 0:00:48.3]} 28... Ba6 {[%clk 0:00:02.7]} 29. Bb6
{[%clk 0:00:47.9]} 29... Qc8 {[%clk 0:00:03]} 30. e5 {[%clk 0:00:48]} 30... dxe5
{[%clk 0:00:03.1]} 31. Rd8+ {[%clk 0:00:47.6]} 31... Qxd8 {[%clk 0:00:03.2]} 32.
Bxd8 {[%clk 0:00:48.5]} 32... Kxd8 {[%clk 0:00:04.1]} 33. Qb6+ {[%clk
0:00:48.2]} 33... Rc7 {[%clk 0:00:04.3]} 34. Qxa6 {[%clk 0:00:49.1]} 34... Nd5
{[%clk 0:00:04]} 35. Rd1 {[%clk 0:00:48.2]} 1-0

[Event "Early-Titled-Tuesday-Blitz-September-12-2023"]
[Site "Chess.com"]
[Date "2023.09.12"]
[Round "11"]
[White "Eloist"]
[Black "Alex_Banzea"]
[Result "0-1"]
[WhiteElo "2475"]
[BlackElo "2629"]
[TimeControl "180+1"]
[EndTime "10:05:25 PDT"]
[Termination "Alex_Banzea won on time"]

1. e4 {[%clk 0:02:56.9]} 1... c6 {[%clk 0:02:57.1]} 2. Nf3 {[%clk 0:02:56.3]}
2... d5 {[%clk 0:02:58]} 3. Nc3 {[%clk 0:02:56.4]} 3... dxe4 {[%clk 0:02:57.9]}
4. Nxe4 {[%clk 0:02:56.6]} 4... Nf6 {[%clk 0:02:58.8]} 5. Ng3 {[%clk 0:02:56.7]}
5... g6 {[%clk 0:02:59.1]} 6. d4 {[%clk 0:02:55.9]} 6... Bg7 {[%clk 0:02:59.7]}
7. Bd3 {[%clk 0:02:54.3]} 7... c5 {[%clk 0:02:59.2]} 8. dxc5 {[%clk 0:02:44.3]}
8... Nbd7 {[%clk 0:02:58.2]} 9. c6 {[%clk 0:02:42.4]} 9... bxc6 {[%clk
0:02:56.3]} 10. O-O {[%clk 0:02:41.4]} 10... O-O {[%clk 0:02:49.9]} 11. c3
{[%clk 0:02:32.3]} 11... Nc5 {[%clk 0:02:35.7]} 12. Bc4 {[%clk 0:02:30.5]} 12...
Be6 {[%clk 0:02:32.5]} 13. Bxe6 {[%clk 0:02:28.7]} 13... Nxe6 {[%clk 0:02:33.4]}
14. Qxd8 {[%clk 0:02:21.4]} 14... Rfxd8 {[%clk 0:02:34.3]} 15. Bd2 {[%clk
0:02:08.5]} 15... Nd5 {[%clk 0:02:28]} 16. Rad1 {[%clk 0:02:07.6]} 16... Nc5
{[%clk 0:02:18]} 17. Bc1 {[%clk 0:02:00.1]} 17... e5 {[%clk 0:02:03.4]} 18. Rfe1
{[%clk 0:01:56.1]} 18... f6 {[%clk 0:01:58.4]} 19. Kf1 {[%clk 0:01:07.2]} 19...
Nb6 {[%clk 0:01:54.8]} 20. Ke2 {[%clk 0:00:59.2]} 20... a5 {[%clk 0:01:51.2]}
21. Rxd8+ {[%clk 0:00:50]} 21... Rxd8 {[%clk 0:01:49.7]} 22. Be3 {[%clk
0:00:44.5]} 22... Bf8 {[%clk 0:01:38.4]} 23. Ne4 {[%clk 0:00:36.5]} 23... Nxe4
{[%clk 0:01:34.1]} 24. Bxb6 {[%clk 0:00:36.2]} 24... Rb8 {[%clk 0:01:34.7]} 25.
Bxa5 {[%clk 0:00:16.2]} 25... Rxb2+ {[%clk 0:01:30.1]} 26. Kf1 {[%clk
0:00:14.9]} 26... Rxf2+ {[%clk 0:01:21.3]} 27. Kg1 {[%clk 0:00:14.9]} 27... Rxa2
{[%clk 0:01:21.6]} 28. Rxe4 {[%clk 0:00:12.1]} 28... Rxa5 {[%clk 0:01:21.2]} 29.
Rc4 {[%clk 0:00:11.1]} 29... Rc5 {[%clk 0:01:21]} 30. Rxc5 {[%clk 0:00:10.6]}
30... Bxc5+ {[%clk 0:01:21.9]} 31. Kf1 {[%clk 0:00:11]} 31... Kf7 {[%clk
0:01:20.5]} 32. Ke2 {[%clk 0:00:11.1]} 32... Ke6 {[%clk 0:01:20.8]} 33. Nd2
{[%clk 0:00:11.2]} 33... f5 {[%clk 0:01:20.1]} 34. Kd3 {[%clk 0:00:10.4]} 34...
Kd5 {[%clk 0:01:18.9]} 35. c4+ {[%clk 0:00:09.6]} 35... Ke6 {[%clk 0:01:18.8]}
36. Nb3 {[%clk 0:00:09.6]} 36... Bb6 {[%clk 0:01:12.8]} 37. c5 {[%clk
0:00:08.9]} 37... Bc7 {[%clk 0:01:11.8]} 38. h3 {[%clk 0:00:08.4]} 38... Kd5
{[%clk 0:01:08.8]} 39. g4 {[%clk 0:00:06.8]} 39... e4+ {[%clk 0:01:08.4]} 40.
Ke3 {[%clk 0:00:04.4]} 40... f4+ {[%clk 0:01:08.6]} 41. Ke2 {[%clk 0:00:04.6]}
41... f3+ {[%clk 0:01:06.6]} 42. Ke3 {[%clk 0:00:04.6]} 42... Bd8 {[%clk
0:01:06.2]} 43. Kf2 {[%clk 0:00:01.2]} 43... Be7 {[%clk 0:01:01.1]} 0-1

[Event "Early-Titled-Tuesday-Blitz-September-12-2023"]
[Site "Chess.com"]
[Date "2023.09.12"]
[Round "11"]
[White "MateusViageiro"]
[Black "GMJustin"]
[Result "0-1"]
[WhiteElo "2119"]
[BlackElo "2243"]
[TimeControl "180+1"]
[EndTime "10:05:25 PDT"]
[Termination "GMJustin won by resignation"]

1. e3 {[%clk 0:02:59.1]} 1... f5 {[%clk 0:02:34.6]} 2. d4 {[%clk 0:03:00]} 2...
Nf6 {[%clk 0:02:31.8]} 3. Nf3 {[%clk 0:03:00.9]} 3... e6 {[%clk 0:02:26.8]} 4.
Bd3 {[%clk 0:02:55.7]} 4... b6 {[%clk 0:02:21.7]} 5. O-O {[%clk 0:02:56.6]} 5...
Bb7 {[%clk 0:02:20.9]} 6. b3 {[%clk 0:02:57.5]} 6... Be7 {[%clk 0:02:14.7]} 7.
Nbd2 {[%clk 0:02:58.4]} 7... O-O {[%clk 0:02:12.5]} 8. Bb2 {[%clk 0:02:58]} 8...
d6 {[%clk 0:02:06.6]} 9. c4 {[%clk 0:02:58.5]} 9... Ne4 {[%clk 0:01:57.2]} 10.
Qe2 {[%clk 0:02:58]} 10... Nd7 {[%clk 0:01:54.5]} 11. Rad1 {[%clk 0:02:56.1]}
11... Ndf6 {[%clk 0:01:51.2]} 12. d5 {[%clk 0:02:46.6]} 12... exd5 {[%clk
0:01:35.6]} 13. Nd4 {[%clk 0:02:44.2]} 13... Qd7 {[%clk 0:01:06.5]} 14. cxd5
{[%clk 0:02:42.7]} 14... Bxd5 {[%clk 0:01:00.2]} 15. f3 {[%clk 0:02:35.5]} 15...
Nxd2 {[%clk 0:00:59.8]} 16. Rxd2 {[%clk 0:02:31.6]} 16... g6 {[%clk 0:00:53.1]}
17. Rfd1 {[%clk 0:02:24.5]} 17... Rae8 {[%clk 0:00:49.8]} 18. Bb5 {[%clk
0:02:20.8]} 18... c6 {[%clk 0:00:48.1]} 19. Bc4 {[%clk 0:02:16.1]} 19... Rf7
{[%clk 0:00:38.7]} 20. a4 {[%clk 0:01:55.6]} 20... Rc8 {[%clk 0:00:22.9]} 21. e4
{[%clk 0:01:48.8]} 21... fxe4 {[%clk 0:00:20.1]} 22. fxe4 {[%clk 0:01:48.2]}
22... Bxc4 {[%clk 0:00:18.2]} 23. Qxc4 {[%clk 0:01:45.2]} 23... Nxe4 {[%clk
0:00:14.3]} 24. Nxc6 {[%clk 0:01:34.7]} 24... Qxc6 {[%clk 0:00:10.1]} 0-1

[Event "Early-Titled-Tuesday-Blitz-September-12-2023"]
[Site "Chess.com"]
[Date "2023.09.12"]
[Round "11"]
[White "NotFischer"]
[Black "Flaccidmoves"]
[Result "0-1"]
[WhiteElo "2285"]
[BlackElo "2449"]
[TimeControl "180+1"]
[EndTime "10:05:28 PDT"]
[Termination "Flaccidmoves won by resignation"]

1. e4 {[%clk 0:03:00.9]} 1... e5 {[%clk 0:02:58.6]} 2. f4 {[%clk 0:03:00.6]}
2... exf4 {[%clk 0:02:57]} 3. Nf3 {[%clk 0:03:00.4]} 3... h5 {[%clk 0:02:56.1]}
4. Bc4 {[%clk 0:02:46.5]} 4... h4 {[%clk 0:02:54.7]} 5. d4 {[%clk 0:02:23.8]}
5... g5 {[%clk 0:02:53.9]} 6. O-O {[%clk 0:02:02.4]} 6... d6 {[%clk 0:02:48.9]}
7. Nxg5 {[%clk 0:01:56.8]} 7... Qxg5 {[%clk 0:02:49.8]} 8. Bxf4 {[%clk
0:01:56.5]} 8... Qg7 {[%clk 0:02:13.3]} 9. Nc3 {[%clk 0:01:44.8]} 9... Be6
{[%clk 0:02:07.3]} 10. d5 {[%clk 0:01:32.4]} 10... Bg4 {[%clk 0:02:04.9]} 11.
Qd2 {[%clk 0:01:32.2]} 11... Nd7 {[%clk 0:02:04.2]} 12. e5 {[%clk 0:00:57.5]}
12... dxe5 {[%clk 0:02:00.4]} 13. d6 {[%clk 0:00:55.2]} 13... Bxd6 {[%clk
0:01:56.9]} 14. Nb5 {[%clk 0:00:41.5]} 14... Bc5+ {[%clk 0:01:26.1]} 15. Be3
{[%clk 0:00:41.1]} 15... O-O-O {[%clk 0:01:12.4]} 16. Rxf7 {[%clk 0:00:38.3]}
16... Qg5 {[%clk 0:01:07.3]} 17. Re1 {[%clk 0:00:20.5]} 17... Nh6 {[%clk
0:01:05.9]} 18. Rf2 {[%clk 0:00:12.3]} 18... Bxe3 {[%clk 0:01:03.8]} 19. Rxe3
{[%clk 0:00:10.7]} 19... a6 {[%clk 0:01:02.1]} 20. Nc3 {[%clk 0:00:09.5]} 20...
Nc5 {[%clk 0:01:00.9]} 21. Qe1 {[%clk 0:00:09.2]} 21... Rhe8 {[%clk 0:00:52.5]}
22. Nd5 {[%clk 0:00:07.2]} 22... e4 {[%clk 0:00:46.1]} 23. Rc3 {[%clk
0:00:06.5]} 23... Rxd5 {[%clk 0:00:43.7]} 24. Bxd5 {[%clk 0:00:06.7]} 24... Qxd5
{[%clk 0:00:44.6]} 25. b4 {[%clk 0:00:06.6]} 25... Na4 {[%clk 0:00:41.8]} 26.
Ra3 {[%clk 0:00:04.2]} 26... Nb2 {[%clk 0:00:40.2]} 27. Qe3 {[%clk 0:00:04.3]}
27... Nc4 {[%clk 0:00:33]} 28. Qxh6 {[%clk 0:00:04.5]} 28... Nxa3 {[%clk
0:00:28.3]} 29. Qg6 {[%clk 0:00:05.1]} 29... Qe6 {[%clk 0:00:25.7]} 30. Qg5
{[%clk 0:00:04.5]} 30... e3 {[%clk 0:00:25]} 0-1

[Event "Early-Titled-Tuesday-Blitz-September-12-2023"]
[Site "Chess.com"]
[Date "2023.09.12"]
[Round "11"]
[White "masnyszachistaaa"]
[Black "Abund"]
[Result "0-1"]
[WhiteElo "2565"]
[BlackElo "2739"]
[TimeControl "180+1"]
[EndTime "10:05:31 PDT"]
[Termination "Abund won by resignation"]

1. c4 {[%clk 0:03:00.9]} 1... e5 {[%clk 0:02:58]} 2. Nc3 {[%clk 0:03:00.8]} 2...
Nf6 {[%clk 0:02:57.9]} 3. Nf3 {[%clk 0:03:01]} 3... Nc6 {[%clk 0:02:58]} 4. e3
{[%clk 0:03:01.3]} 4... Bb4 {[%clk 0:02:57.4]} 5. Qc2 {[%clk 0:03:01.2]} 5...
Bxc3 {[%clk 0:02:57.3]} 6. Qxc3 {[%clk 0:03:02.1]} 6... Qe7 {[%clk 0:02:57.9]}
7. d3 {[%clk 0:03:00.2]} 7... O-O {[%clk 0:02:53.3]} 8. Be2 {[%clk 0:03:00.3]}
8... e4 {[%clk 0:02:51]} 9. Nd4 {[%clk 0:02:40.9]} 9... Ne5 {[%clk 0:02:35.9]}
10. dxe4 {[%clk 0:02:38.4]} 10... Nxe4 {[%clk 0:02:31.7]} 11. Qc2 {[%clk
0:02:38.5]} 11... Nf6 {[%clk 0:02:25]} 12. O-O {[%clk 0:02:33.5]} 12... d6
{[%clk 0:02:23]} 13. Nf5 {[%clk 0:02:32.4]} 13... Bxf5 {[%clk 0:02:20.4]} 14.
Qxf5 {[%clk 0:02:33.3]} 14... Qe6 {[%clk 0:02:15]} 15. Qxe6 {[%clk 0:02:28.6]}
15... fxe6 {[%clk 0:02:15.9]} 16. f4 {[%clk 0:02:26.9]} 16... Ned7 {[%clk
0:02:13.1]} 17. Bf3 {[%clk 0:02:26.2]} 17... c6 {[%clk 0:02:06.7]} 18. b3 {[%clk
0:02:26.1]} 18... d5 {[%clk 0:02:04.1]} 19. Ba3 {[%clk 0:02:25.9]} 19... Rfe8
{[%clk 0:02:03.9]} 20. Rad1 {[%clk 0:02:23.5]} 20... Nb6 {[%clk 0:02:03]} 21.
cxd5 {[%clk 0:02:02.4]} 21... exd5 {[%clk 0:02:03.4]} 22. Bc5 {[%clk 0:02:02.6]}
22... Ne4 {[%clk 0:01:51.8]} 23. Bxe4 {[%clk 0:01:44.6]} 23... Rxe4 {[%clk
0:01:51.4]} 24. Kf2 {[%clk 0:01:44.6]} 24... Nd7 {[%clk 0:01:43.3]} 25. Bd4
{[%clk 0:01:41.8]} 25... Rae8 {[%clk 0:01:39.6]} 26. Rfe1 {[%clk 0:01:39.7]}
26... a6 {[%clk 0:01:36.2]} 27. Bb2 {[%clk 0:01:34.7]} 27... R4e7 {[%clk
0:01:29.2]} 28. Bd4 {[%clk 0:01:30.1]} 28... Kf7 {[%clk 0:01:23.5]} 29. g4
{[%clk 0:01:29.8]} 29... Re4 {[%clk 0:01:23.3]} 30. h3 {[%clk 0:01:27.9]} 30...
g6 {[%clk 0:01:18.4]} 31. Rc1 {[%clk 0:01:26]} 31... Nf8 {[%clk 0:01:18.3]} 32.
Bc3 {[%clk 0:01:17.1]} 32... Ne6 {[%clk 0:01:17.2]} 33. Rcd1 {[%clk 0:01:15.2]}
33... Nc5 {[%clk 0:01:11]} 34. Bd4 {[%clk 0:01:13.5]} 34... Ne6 {[%clk
0:01:10.8]} 35. Be5 {[%clk 0:01:13]} 35... a5 {[%clk 0:00:59.6]} 36. Bc3 {[%clk
0:01:04.8]} 36... a4 {[%clk 0:00:58.9]} 37. Rb1 {[%clk 0:00:59.7]} 37... axb3
{[%clk 0:00:55.8]} 38. axb3 {[%clk 0:01:00.6]} 38... Nc5 {[%clk 0:00:50.8]} 39.
Kf3 {[%clk 0:01:00.9]} 39... Nd3 {[%clk 0:00:43]} 40. Re2 {[%clk 0:00:59.7]}
40... Nxf4 {[%clk 0:00:43.4]} 41. Rc2 {[%clk 0:00:45.9]} 41... Rxe3+ {[%clk
0:00:34.7]} 42. Kxf4 {[%clk 0:00:46]} 42... h6 {[%clk 0:00:35.2]} 43. Be5 {[%clk
0:00:30.2]} 43... R8xe5 {[%clk 0:00:35]} 0-1

[Event "Early-Titled-Tuesday-Blitz-September-12-2023"]
[Site "Chess.com"]
[Date "2023.09.12"]
[Round "11"]
[White "Pumpkin_in_moonlight"]
[Black "maurovargas01"]
[Result "1-0"]
[WhiteElo "2213"]
[BlackElo "1852"]
[TimeControl "180+1"]
[EndTime "10:05:36 PDT"]
[Termination "Pumpkin_in_moonlight won on time"]

1. e4 {[%clk 0:03:00.9]} 1... d5 {[%clk 0:02:59.1]} 2. exd5 {[%clk 0:02:59.3]}
2... Qxd5 {[%clk 0:03:00]} 3. d4 {[%clk 0:02:58]} 3... c6 {[%clk 0:02:59]} 4.
Nf3 {[%clk 0:02:56]} 4... Bg4 {[%clk 0:02:56.7]} 5. Be2 {[%clk 0:02:56]} 5...
Nf6 {[%clk 0:02:56.4]} 6. h3 {[%clk 0:02:54.5]} 6... Bf5 {[%clk 0:02:54.1]} 7.
c4 {[%clk 0:02:50.9]} 7... Qa5+ {[%clk 0:02:52.5]} 8. Nc3 {[%clk 0:02:50.1]}
8... Nbd7 {[%clk 0:02:50.1]} 9. O-O {[%clk 0:02:49.3]} 9... e6 {[%clk
0:02:49.5]} 10. a3 {[%clk 0:02:42.1]} 10... Rc8 {[%clk 0:02:48.7]} 11. Bf4
{[%clk 0:02:39.4]} 11... Be7 {[%clk 0:02:40.1]} 12. b4 {[%clk 0:02:32.2]} 12...
Qd8 {[%clk 0:02:39.3]} 13. Bh2 {[%clk 0:02:28.4]} 13... O-O {[%clk 0:02:38.8]}
14. Rc1 {[%clk 0:02:26.7]} 14... h6 {[%clk 0:02:38.5]} 15. Qd2 {[%clk
0:02:25.7]} 15... Ne4 {[%clk 0:02:19.3]} 16. Nxe4 {[%clk 0:02:24.2]} 16... Bxe4
{[%clk 0:02:19.1]} 17. Rfd1 {[%clk 0:02:22.9]} 17... Nf6 {[%clk 0:02:18.6]} 18.
Qc3 {[%clk 0:02:16.7]} 18... b6 {[%clk 0:02:07.3]} 19. Ne5 {[%clk 0:02:15.2]}
19... Nh7 {[%clk 0:01:59.7]} 20. Bf3 {[%clk 0:02:10.6]} 20... Bxf3 {[%clk
0:01:57.2]} 21. Qxf3 {[%clk 0:02:09.8]} 21... Ng5 {[%clk 0:01:49.4]} 22. Qb3
{[%clk 0:01:58.9]} 22... Bf6 {[%clk 0:01:48.9]} 23. Qa4 {[%clk 0:01:56.7]} 23...
Qe7 {[%clk 0:01:42.2]} 24. Nxc6 {[%clk 0:01:54]} 24... Qe8 {[%clk 0:01:38.2]}
25. d5 {[%clk 0:01:45.5]} 25... exd5 {[%clk 0:01:36.2]} 26. cxd5 {[%clk
0:01:45.3]} 26... Qe2 {[%clk 0:01:18.8]} 27. Qxa7 {[%clk 0:01:35.6]} 27... b5
{[%clk 0:01:00.1]} 28. Qe3 {[%clk 0:01:27.6]} 28... Qh5 {[%clk 0:00:55.2]} 29.
d6 {[%clk 0:01:20.7]} 29... Rce8 {[%clk 0:00:38.7]} 30. Qd3 {[%clk 0:01:14.9]}
30... Ne4 {[%clk 0:00:17.2]} 31. d7 {[%clk 0:01:11]} 31... Qf5 {[%clk
0:00:12.1]} 32. dxe8=Q {[%clk 0:01:04.5]} 32... Qxf2+ {[%clk 0:00:09.8]} 33. Kh1
{[%clk 0:01:04.4]} 33... Rxe8 {[%clk 0:00:09.4]} 34. Rf1 {[%clk 0:01:02]} 34...
Qa2 {[%clk 0:00:08.3]} 35. Qd7 {[%clk 0:00:53.4]} 35... Nf2+ {[%clk 0:00:07.6]}
36. Rxf2 {[%clk 0:00:50.7]} 36... Qxf2 {[%clk 0:00:01.9]} 37. Qxe8+ {[%clk
0:00:50.6]} 37... Kh7 {[%clk 0:00:02.3]} 38. Qe4+ {[%clk 0:00:49.9]} 1-0

[Event "Early-Titled-Tuesday-Blitz-September-12-2023"]
[Site "Chess.com"]
[Date "2023.09.12"]
[Round "11"]
[White "OchsenfroschGambit"]
[Black "GeorgiosSouleidis"]
[Result "1/2-1/2"]
[WhiteElo "2360"]
[BlackElo "2500"]
[TimeControl "180+1"]
[EndTime "10:05:38 PDT"]
[Termination "Game drawn by repetition"]

1. d4 {[%clk 0:03:00.9]} 1... Nf6 {[%clk 0:02:59]} 2. c4 {[%clk 0:03:00.6]} 2...
g6 {[%clk 0:02:59.5]} 3. Nc3 {[%clk 0:03:00.9]} 3... Bg7 {[%clk 0:03:00.2]} 4.
e4 {[%clk 0:03:01.1]} 4... d6 {[%clk 0:03:01]} 5. Be2 {[%clk 0:03:01.4]} 5...
O-O {[%clk 0:03:01.7]} 6. Be3 {[%clk 0:03:01.8]} 6... Nbd7 {[%clk 0:03:01.7]} 7.
Qd2 {[%clk 0:02:55.7]} 7... c5 {[%clk 0:03:01.6]} 8. d5 {[%clk 0:02:51.5]} 8...
b5 {[%clk 0:03:01.8]} 9. cxb5 {[%clk 0:02:48.9]} 9... a6 {[%clk 0:03:02.4]} 10.
Nf3 {[%clk 0:02:43.9]} 10... axb5 {[%clk 0:02:57.7]} 11. Bxb5 {[%clk 0:02:43.7]}
11... Qa5 {[%clk 0:02:58.2]} 12. a4 {[%clk 0:02:31.7]} 12... Ba6 {[%clk
0:02:58.1]} 13. Bxa6 {[%clk 0:02:07]} 13... Qxa6 {[%clk 0:02:59]} 14. Qe2 {[%clk
0:02:05.2]} 14... Qb6 {[%clk 0:02:50.9]} 15. O-O {[%clk 0:02:02.2]} 15... Rfb8
{[%clk 0:02:50.7]} 16. Rfb1 {[%clk 0:02:01.8]} 16... Qb4 {[%clk 0:02:45.2]} 17.
Nd2 {[%clk 0:01:50.3]} 17... Ne5 {[%clk 0:02:04.3]} 18. h3 {[%clk 0:01:48.8]}
18... c4 {[%clk 0:01:53.6]} 19. Nb5 {[%clk 0:01:35.2]} 19... Rxa4 {[%clk
0:01:46.3]} 20. Rxa4 {[%clk 0:01:31.4]} 20... Qxa4 {[%clk 0:01:47.2]} 21. Nd4
{[%clk 0:01:28.3]} 21... Qa2 {[%clk 0:01:29.5]} 22. Nc6 {[%clk 0:01:01.1]} 22...
Rxb2 {[%clk 0:01:15.3]} 23. Rxb2 {[%clk 0:01:01]} 23... Qxb2 {[%clk 0:01:15.7]}
24. Nxe5 {[%clk 0:00:57.7]} 24... Qa1+ {[%clk 0:00:58.7]} 25. Qf1 {[%clk
0:00:34.9]} 25... Qxe5 {[%clk 0:00:54.9]} 26. Qxc4 {[%clk 0:00:34.8]} 26... h6
{[%clk 0:00:39.5]} 27. g3 {[%clk 0:00:34.6]} 27... Nh5 {[%clk 0:00:28.2]} 28.
Kg2 {[%clk 0:00:34.2]} 28... Qb2 {[%clk 0:00:18.2]} 29. Qc8+ {[%clk 0:00:28.5]}
29... Kh7 {[%clk 0:00:17.5]} 30. Qc7 {[%clk 0:00:25.1]} 30... Bf6 {[%clk
0:00:14.6]} 31. Qc8 {[%clk 0:00:16.6]} 31... Bg7 {[%clk 0:00:09.9]} 32. Qc7
{[%clk 0:00:16.7]} 32... Bf6 {[%clk 0:00:09.6]} 33. Qc8 {[%clk 0:00:17.2]} 33...
Bg7 {[%clk 0:00:06.1]} 1/2-1/2

[Event "Early-Titled-Tuesday-Blitz-September-12-2023"]
[Site "Chess.com"]
[Date "2023.09.12"]
[Round "11"]
[White "JimDiGrease"]
[Black "AndreiITrifan"]
[Result "1-0"]
[WhiteElo "2872"]
[BlackElo "2651"]
[TimeControl "180+1"]
[EndTime "10:05:41 PDT"]
[Termination "JimDiGrease won by resignation"]

1. d4 {[%clk 0:03:00.9]} 1... Nf6 {[%clk 0:02:59.2]} 2. c4 {[%clk 0:03:01]} 2...
e6 {[%clk 0:02:59.3]} 3. Bf4 {[%clk 0:03:00.1]} 3... b6 {[%clk 0:02:54]} 4. Nc3
{[%clk 0:02:58.2]} 4... Bb7 {[%clk 0:02:54.2]} 5. e3 {[%clk 0:02:58.3]} 5... Be7
{[%clk 0:02:50.8]} 6. Nf3 {[%clk 0:02:56.9]} 6... Ne4 {[%clk 0:02:43.3]} 7. Nxe4
{[%clk 0:02:47.9]} 7... Bxe4 {[%clk 0:02:44.2]} 8. Bd3 {[%clk 0:02:48.6]} 8...
Bxd3 {[%clk 0:02:41.4]} 9. Qxd3 {[%clk 0:02:49.5]} 9... O-O {[%clk 0:02:40.2]}
10. O-O {[%clk 0:02:49.1]} 10... d6 {[%clk 0:02:38.2]} 11. b4 {[%clk 0:02:45.2]}
11... Nd7 {[%clk 0:02:37.1]} 12. b5 {[%clk 0:02:25.5]} 12... a6 {[%clk
0:02:34.3]} 13. a4 {[%clk 0:02:22.1]} 13... Qc8 {[%clk 0:02:34]} 14. Qe4 {[%clk
0:02:16.5]} 14... Nf6 {[%clk 0:02:31.4]} 15. Qc6 {[%clk 0:02:16.2]} 15... Qd7
{[%clk 0:02:30.1]} 16. d5 {[%clk 0:01:38.4]} 16... e5 {[%clk 0:02:23.7]} 17. Bg5
{[%clk 0:01:37.1]} 17... Qd8 {[%clk 0:02:12.9]} 18. Bxf6 {[%clk 0:01:27.5]}
18... Bxf6 {[%clk 0:02:12.7]} 19. a5 {[%clk 0:01:22.1]} 19... e4 {[%clk
0:01:56.7]} 20. Nd4 {[%clk 0:01:20.9]} 20... axb5 {[%clk 0:01:45.1]} 21. axb6
{[%clk 0:01:12.5]} 21... cxb6 {[%clk 0:01:36.1]} 22. Rxa8 {[%clk 0:01:05.8]}
22... Qxa8 {[%clk 0:01:34.8]} 23. Nxb5 {[%clk 0:01:06.7]} 23... Be5 {[%clk
0:01:24.4]} 24. Qxb6 {[%clk 0:01:01.3]} 24... Qa2 {[%clk 0:01:15.3]} 25. Nxd6
{[%clk 0:00:54.5]} 25... Bxd6 {[%clk 0:01:16.2]} 26. Qxd6 {[%clk 0:00:54.3]}
26... Qxc4 {[%clk 0:01:16.6]} 27. h3 {[%clk 0:00:48.3]} 27... g6 {[%clk
0:01:03.6]} 28. Rb1 {[%clk 0:00:42.7]} 28... Qe2 {[%clk 0:00:57.1]} 29. Rb8
{[%clk 0:00:37.8]} 29... Rxb8 {[%clk 0:00:52]} 30. Qxb8+ {[%clk 0:00:38.7]}
30... Kg7 {[%clk 0:00:52.9]} 31. Qe5+ {[%clk 0:00:39.1]} 31... Kf8 {[%clk
0:00:46]} 32. d6 {[%clk 0:00:36.8]} 32... Qd1+ {[%clk 0:00:33.9]} 33. Kh2 {[%clk
0:00:36]} 33... Kg8 {[%clk 0:00:30.5]} 34. Qe8+ {[%clk 0:00:31.5]} 34... Kg7
{[%clk 0:00:30.4]} 35. d7 {[%clk 0:00:24.8]} 35... Qd6+ {[%clk 0:00:29.4]} 36.
g3 {[%clk 0:00:25.4]} 36... Qf6 {[%clk 0:00:24]} 37. Kg1 {[%clk 0:00:24.4]}
37... Qa1+ {[%clk 0:00:19.8]} 38. Kg2 {[%clk 0:00:23.6]} 38... Qd1 {[%clk
0:00:19.9]} 39. d8=Q {[%clk 0:00:24.5]} 39... Qf3+ {[%clk 0:00:20.3]} 40. Kg1
{[%clk 0:00:25]} 1-0